bitfinex/quotes_SOLUSD_20240808
["timestamp","ask_amount","ask_price","bid_price","bid_amount"]
[1723122309874,6.4206,155.75,155.61,21.28434349]
[1723122310080,6.421,155.74,155.62,45.0]
[1723122310385,42.40485687,155.76,155.63,20.0]
[1723122310677,42.40485687,155.76,155.6,9.3669]
[1723122310678,38.54,155.7,155.6,9.3669]
[1723122310980,6.4239,155.67,155.6,9.3669]
[1723122311186,6.4235,155.68,155.6,9.3669]
[1723122311354,0.34,155.67,155.6,9.3669]
[1723122311965,38.54,155.7,155.6,9.3669]
[1723122312160,35.72,155.84,155.61,20.0]
[1723122312366,16.0485,155.78,155.61,20.0]
[1723122312583,6.4218,155.72,155.61,20.0]
[1723122312859,44.9618,155.72,155.61,20.0]
[1723122313473,6.4223,155.71,155.61,20.0]
[1723122313681,0.17,155.7,155.61,20.0]
[1723122313882,0.17,155.71,155.61,20.0]
[1723122314067,0.17,155.71,155.61,21.28479753]
[1723122314268,38.54,155.75,155.62,45.0]
[1723122314572,16.0476,155.79,155.62,45.0]
[1723122314573,6.4184,155.8,155.65,21.3338]
[1723122314769,6.4173,155.83,155.68,21.879]
[1723122314969,44.9573,155.83,155.69,66.28404625]
[1723122316065,38.54,155.81,155.69,65.0]
[1723122316270,38.58,155.81,155.69,65.0]
[1723122316764,6.4177,155.82,155.69,65.0]
[1723122316963,35.72,155.85,155.71,8.7315]
[1723122317169,38.58,155.84,155.72,20.0]
[1723122317363,6.4196,155.78,155.71,8.7315]
[1723122317556,38.58,155.78,155.71,8.7315]
[1723122317987,38.58,155.74,155.71,8.7315]
[1723122318269,38.58,155.72,155.68,21.879]
[1723122318460,6.423,155.69,155.66,8.4257]
[1723122318657,51.7634,155.68,155.66,8.4257]
[1723122318872,6.425,155.64,155.63,22.8177]
[1723122319078,0.34,155.64,155.6,8.3479]
[1723122319377,100.24076674,155.68,155.6,8.3479]
[1723122319586,0.17,155.67,155.6,8.3479]
[1723122319782,38.58,155.66,155.6,8.3479]
[1723122320087,83.92,155.65,155.6,8.3479]
[1723122320488,45.34,155.65,155.6,8.3479]
[1723122320986,10.06707133,155.69,155.6,8.3479]
[1723122321177,292.7913,155.81,155.61,20.0]
[1723122321178,0.34,155.68,155.61,20.0]
[1723122321381,0.17,155.68,155.61,20.0]
[1723122321892,45.1736,155.68,155.61,20.0]
[1723122322069,90.1739,155.67,155.6,8.3479]
[1723122322266,38.75,155.66,155.6,8.3479]
[1723122322494,83.75,155.65,155.6,8.3479]
[1723122322664,0.17,155.64,155.6,8.3479]
[1723122322864,83.75,155.64,155.6,8.3479]
[1723122323087,0.17,155.63,155.6,8.3479]
[1723122323297,45.17,155.64,155.6,8.3479]
[1723122323473,0.17,155.63,155.6,8.3479]
[1723122323698,68.58,155.63,155.6,8.3479]
[1723122323865,0.34,155.62,155.6,8.3479]
[1723122324687,0.17,155.62,155.6,8.3479]
[1723122324996,10.0798,155.8,155.6,8.3479]
[1723122324997,6.4226,155.7,155.6,8.3479]
[1723122325171,10.0654894,155.73,155.6,8.3479]
[1723122325386,6.4218,155.72,155.6,8.3479]
[1723122325577,38.58,155.71,155.61,21.28495047]
[1723122325778,38.58,155.72,155.61,20.0]
[1723122325977,38.58,155.69,155.61,20.0]
[1723122326193,38.58,155.66,155.6,8.3479]
[1723122326693,6.425,155.65,155.6,8.3479]
[1723122326880,38.58,155.64,155.6,8.3479]
[1723122327083,38.58,155.67,155.6,8.3479]
[1723122327286,45.0,155.66,155.6,8.3479]
[1723122327591,45.17,155.66,155.6,8.3479]
[1723122327791,6.423,155.7,155.6,8.3479]
[1723122327971,6.64917469,155.72,155.61,20.0]
[1723122328174,38.58,155.66,155.6,8.3479]
[1723122328379,45.0046,155.65,155.6,8.3479]
[1723122328685,38.58,155.65,155.6,8.3479]
[1723122329391,0.17,155.66,155.6,8.3479]
[1723122329597,0.17,155.65,155.6,8.3479]
[1723122329894,38.75,155.65,155.6,8.3479]
[1723122330071,38.58,155.63,155.6,8.3479]
[1723122330415,0.17,155.62,155.6,8.3479]
[1723122330894,83.92,155.62,155.6,8.3479]
[1723122331097,83.92,155.62,155.44,64.4797672]
[1723122331098,38.58,155.6,155.55,6.9762]
[1723122331392,38.58,155.58,155.55,6.9762]
[1723122331596,38.58,155.58,155.52,15.4505]
[1723122331597,45.0076,155.58,155.52,15.4505]
[1723122331898,0.34,155.59,155.52,15.4505]
[1723122331899,38.58,155.55,155.52,15.4505]
[1723122332209,45.34,155.54,155.52,15.4505]
[1723122333476,82.21,155.61,155.52,15.4505]
[1723122333695,38.58,155.61,155.52,15.4505]
[1723122334290,38.58,155.61,155.53,20.0]
[1723122334490,38.58,155.65,155.53,20.0]
[1723122334700,45.005,155.65,155.53,20.0]
[1723122335899,38.58,155.67,155.54,1.28513135]
[1723122336089,38.58,155.67,155.53,20.0]
[1723122336300,38.58,155.67,155.55,6.8863]
[1723122336507,45.0038,155.67,155.55,6.8863]
[1723122336688,6.64917469,155.72,155.57,16.7619]
[1723122336891,6.64917469,155.72,155.59,6.5517]
[1723122336892,38.58,155.71,155.59,6.5517]
[1723122337196,38.58,155.71,155.6,20.0]
[1723122337401,6.4214,155.73,155.6,20.0]
[1723122337599,16.71519632,155.74,155.6,20.0]
[1723122337808,6.4225,155.71,155.6,20.0]
[1723122338105,38.58,155.73,155.6,20.0]
[1723122338304,38.58,155.69,155.6,20.0]
[1723122338815,38.58,155.68,155.6,20.0]
[1723122339028,38.58,155.73,155.6,20.0]
[1723122339194,0.34,155.72,155.6,20.0]
[1723122339530,16.71519632,155.74,155.62,16.1098]
[1723122339819,6.4208,155.75,155.63,20.0]
[1723122340021,38.58,155.72,155.62,16.1098]
[1723122340192,38.58,155.7,155.62,16.1098]
[1723122340900,45.34,155.69,155.62,16.1098]
[1723122341420,83.92,155.69,155.62,16.1098]
[1723122342622,38.58,155.67,155.62,16.1098]
[1723122342800,83.92,155.66,155.62,16.1098]
[1723122342998,0.17,155.65,155.62,16.1098]
[1723122343511,38.58,155.64,155.62,16.1098]
[1723122343715,45.34,155.63,155.62,16.1098]
[1723122344191,0.34,155.63,155.62,16.1098]
[1723122344397,38.58,155.67,155.62,16.1098]
[1723122344640,83.92,155.66,155.62,16.1098]
[1723122345618,45.34,155.66,155.62,16.1098]
[1723122345802,35.73,155.73,155.62,16.1098]
[1723122346009,6.4209,155.75,155.63,20.0]
[1723122346306,6.4209,155.75,155.64,1.28450814]
[1723122346508,6.4205,155.75,155.63,20.0]
[1723122346712,38.58,155.71,155.63,20.0]
[1723122347215,38.58,155.68,155.63,20.0]
[1723122347533,45.0,155.7,155.63,20.0]
[1723122347702,38.58,155.71,155.63,20.0]
[1723122348430,35.73,155.73,155.63,20.0]
[1723122348431,38.58,155.7,155.63,20.0]
[1723122348607,45.0028,155.7,155.63,20.0]
[1723122348812,38.58,155.7,155.63,20.0]
[1723122349001,0.17,155.69,155.63,20.0]
[1723122349207,45.34,155.69,155.63,20.0]
[1723122349717,38.58,155.74,155.64,1.18326036]
[1723122349915,83.92,155.73,155.63,20.0]
[1723122350337,6.4227,155.7,155.62,16.1098]
[1723122350628,83.92,155.69,155.62,16.1098]
[1723122350842,38.58,155.67,155.62,16.1098]
[1723122351006,0.34,155.66,155.62,16.1098]
[1723122351206,45.34,155.66,155.62,16.1098]
[1723122351746,38.58,155.65,155.62,16.1098]
[1723122351942,0.34,155.64,155.62,16.1098]
[1723122352235,0.17,155.64,155.62,16.1098]
[1723122352443,0.17,155.65,155.62,16.1098]
[1723122352648,0.17,155.66,155.62,16.1098]
[1723122353316,38.58,155.7,155.63,20.0]
[1723122353641,6.4212,155.74,155.63,20.0]
[1723122353833,38.58,155.73,155.63,20.0]
[1723122354016,38.58,155.71,155.63,20.0]
[1723122354332,45.0024,155.71,155.63,20.0]
[1723122354709,38.58,155.69,155.63,20.0]
[1723122354943,0.34,155.68,155.63,20.0]
[1723122355122,45.34,155.68,155.63,20.0]
[1723122355308,0.34,155.68,155.62,16.1098]
[1723122355523,90.3436,155.68,155.62,16.1098]
[1723122355816,83.92,155.68,155.62,16.1098]
[1723122356337,38.58,155.65,155.62,16.1098]
[1723122356540,0.34,155.64,155.62,16.1098]
[1723122357235,0.17,155.64,155.62,16.1098]
[1723122357446,0.34,155.64,155.62,16.1098]
[1723122358318,38.58,155.63,155.59,6.5517]
[1723122358660,30.34,155.64,155.57,16.371]
[1723122358661,83.92,155.62,155.57,16.371]
[1723122358817,0.17,155.61,155.57,16.371]
[1723122359623,75.0054,155.64,155.57,16.371]
[1723122359825,45.34,155.63,155.57,16.371]
[1723122360332,83.92,155.63,155.57,16.371]
[1723122360723,6.4263,155.61,155.57,16.371]
[1723122360926,0.34,155.63,155.57,16.371]
[1723122361134,30.0,155.64,155.57,16.371]
[1723122361442,6.4239,155.67,155.58,1.28487167]
[1723122361623,35.73,155.71,155.57,16.371]
[1723122361940,38.65646916,155.71,155.57,16.371]
[1723122362141,6.4252,155.64,155.58,20.0]
[1723122362524,38.58,155.64,155.57,16.371]
[1723122362826,32.115,155.7,155.57,16.371]
[1723122362827,6.4275,155.58,155.57,16.371]
[1723122363033,6.4283,155.56,155.55,6.196]
[1723122363221,6.4288,155.55,155.52,16.6238]
[1723122363419,0.34,155.54,155.52,16.6238]
[1723122363637,6.4296,155.53,155.52,16.6238]
[1723122363941,83.92,155.53,155.5,6.6256]
[1723122364141,0.34,155.52,155.5,6.6256]
[1723122364317,45.34,155.52,155.5,6.6256]
[1723122364830,45.0078,155.58,155.5,6.6256]
[1723122365019,83.75,155.57,155.5,6.6256]
[1723122365218,38.58,155.55,155.5,6.6256]
[1723122365418,0.17,155.56,155.5,6.6256]
[1723122365750,6.5985,155.56,155.5,6.6256]
[1723122366113,38.75,155.56,155.5,6.6256]
[1723122366620,6.4293,155.54,155.5,6.6256]
[1723122366918,119.65,155.53,155.47,16.0124]
[1723122367121,6.4308,155.51,155.47,16.0124]
[1723122367452,75.34,155.5,155.47,16.0124]
[1723122368625,6.4313,155.49,155.47,16.0124]
[1723122368819,81.7717,155.48,155.44,0.8497672]
[1723122369015,0.17,155.47,155.44,0.8497672]
[1723122369219,6.6024,155.47,155.44,0.8497672]
[1723122369429,0.17,155.47,155.44,0.8497672]
[1723122370122,30.17,155.48,155.44,0.8497672]
[1723122370320,30.0,155.48,155.44,0.8497672]
[1723122371619,30.0,155.47,155.44,0.8497672]
[1723122372439,0.17,155.46,155.44,0.8497672]
[1723122372638,45.34,155.46,155.44,0.8497672]
[1723122372848,75.34,155.46,155.44,0.8497672]
[1723122373034,6.4329,155.45,155.44,0.8497672]
[1723122373231,51.7729,155.45,155.44,0.8497672]
[1723122373962,120.3529,155.45,155.44,0.8497672]
[1723122374182,113.92,155.45,155.36,22.2269]
[1723122374336,35.73,155.43,155.36,22.2269]
[1723122374535,0.34,155.42,155.36,22.2269]
[1723122374761,83.92,155.42,155.32,6.2325]
[1723122374962,6.4351,155.4,155.32,6.2325]
[1723122375142,45.34,155.39,155.32,6.2325]
[1723122375535,0.34,155.39,155.32,6.2325]
[1723122375862,30.0,155.41,155.32,6.2325]
[1723122376156,35.73,155.5,155.32,6.2325]
[1723122376458,35.73,155.5,155.31,15.6957]
[1723122376459,6.4313,155.49,155.34,22.5586]
[1723122376637,6.64544125,155.5,155.35,20.0]
[1723122376957,38.58,155.49,155.35,20.0]
[1723122377141,38.58,155.5,155.35,20.0]
[1723122377336,38.58,155.5,155.36,45.0]
[1723122377532,6.4317,155.48,155.37,20.0]
[1723122377837,38.58,155.5,155.37,20.0]
[1723122378039,6.64805718,155.51,155.37,20.0]
[1723122378040,6.64805718,155.51,155.38,45.0]
[1723122378363,45.22805718,155.51,155.39,20.0]
[1723122378531,38.58,155.49,155.39,20.0]
[1723122378731,6.4322,155.47,155.35,20.0]
[1723122379146,6.4318,155.48,155.35,20.0]
[1723122379443,45.34,155.47,155.35,20.0]
[1723122379762,0.34,155.47,155.36,45.0]
[1723122379932,0.34,155.47,155.37,20.0]
[1723122380129,0.34,155.47,155.39,22.4526]
[1723122380130,0.17,155.47,155.39,22.4526]
[1723122380363,45.0109,155.5,155.4,20.0]
[1723122380553,45.17,155.49,155.4,20.0]
[1723122380961,6.64805718,155.51,155.4,20.0]
[1723122381163,6.428,155.57,155.42,22.7101]
[1723122381343,16.0664,155.61,155.43,66.28615789]
[1723122381344,6.4284,155.56,155.43,66.28615789]
[1723122381548,6.4288,155.55,155.43,66.28615789]
[1723122381746,6.4302,155.52,155.43,20.0]
[1723122381955,38.58,155.53,155.43,20.0]
[1723122382144,6.4309,155.5,155.43,20.0]
[1723122382337,0.17,155.49,155.42,22.7101]
[1723122382539,6.4325,155.46,155.42,22.7101]
[1723122382842,51.7729,155.45,155.42,22.7101]
[1723122383051,0.17,155.44,155.42,22.7101]
[1723122383244,45.17,155.44,155.42,16.2359]
[1723122383439,45.17,155.44,155.38,6.0089]
[1723122383440,0.17,155.43,155.38,6.0089]
[1723122383666,6.604,155.43,155.38,6.0089]
[1723122383969,83.75,155.42,155.38,6.0089]
[1723122384147,0.17,155.41,155.38,6.0089]
[1723122384741,30.0,155.44,155.35,16.6392]
[1723122384742,104.31,155.44,155.35,16.6392]
[1723122384944,72.1633,155.44,155.35,16.6392]
[1723122385148,30.0,155.44,155.35,16.6392]
[1723122385782,104.31,155.44,155.35,16.6392]
[1723122385942,35.02277795,155.5,155.29,0.8497672]
[1723122385943,6.4354,155.39,155.3,22.6492]
[1723122386143,45.34,155.38,155.3,22.6492]
[1723122386745,45.0,155.37,155.3,22.6492]
[1723122386943,0.17,155.36,155.29,0.8497672]
[1723122387256,30.0,155.36,155.3,1.28742054]
[1723122387456,30.0,155.36,155.3,1.28722168]
[1723122387765,0.17,155.38,155.3,1.28721973]
[1723122388064,45.34,155.39,155.3,1.28721973]
[1723122388702,0.34,155.39,155.3,1.28721973]
[1723122388881,38.58,155.43,155.31,1.28705395]
[1723122389080,6.4338,155.43,155.31,65.17]
[1723122389373,35.73,155.47,155.32,6.2684]
[1723122389555,35.73,155.47,155.33,80.0316]
[1723122390154,6.4333,155.44,155.33,80.0316]
[1723122390370,90.3904,155.47,155.33,35.0316]
[1723122390567,6.435,155.4,155.33,35.0316]
[1723122391073,0.17,155.39,155.33,15.0316]
[1723122391378,0.34,155.39,155.33,15.0316]
[1723122391955,6.4359,155.38,155.33,15.0316]
[1723122392159,0.34,155.37,155.33,15.0316]
[1723122392392,45.34,155.37,155.33,15.0316]
[1723122392679,45.0154,155.4,155.33,15.0316]
[1723122392856,45.34,155.39,155.33,15.0316]
[1723122393059,6.7755,155.39,155.33,15.0316]
[1723122393270,0.34,155.39,155.33,15.0316]
[1723122393497,0.17,155.38,155.33,15.0316]
[1723122393780,51.775,155.4,155.33,15.0316]
[1723122394377,6.4356,155.39,155.33,15.0316]
[1723122394684,0.34,155.38,155.33,15.0316]
[1723122394979,51.775,155.4,155.33,15.0316]
[1723122395293,45.34,155.4,155.33,15.0316]
[1723122396085,0.34,155.4,155.33,15.0316]
[1723122396380,74.31,155.47,155.34,1.28644209]
[1723122396560,74.31,155.47,155.34,21.28644209]
[1723122396760,45.21884623,155.46,155.34,20.0]
[1723122396952,6.4341,155.43,155.34,20.0]
[1723122397154,6.4344,155.42,155.34,20.0]
[1723122397354,45.21884623,155.46,155.34,20.0]
[1723122397581,6.63884623,155.46,155.35,1.28528325]
[1723122397777,35.73,155.47,155.36,6.1458]
[1723122397976,6.4325,155.46,155.37,21.28689917]
[1723122398281,42.1622,155.47,155.37,21.28689917]
[1723122398481,42.1622,155.47,155.38,16.262]
[1723122398780,35.73,155.47,155.39,20.0]
[1723122398959,6.4329,155.45,155.39,20.0]
[1723122399154,74.31,155.47,155.39,20.0]
[1723122399556,6.4339,155.43,155.38,16.262]
[1723122399755,38.58,155.45,155.38,16.262]
[1723122399974,0.17,155.42,155.38,16.262]
[1723122400180,0.34,155.42,155.38,16.262]
[1723122400381,0.17,155.41,155.38,16.262]
[1723122400682,0.17,155.42,155.38,16.262]
[1723122400855,0.17,155.44,155.38,16.262]
[1723122401056,6.4325,155.46,155.38,16.262]
[1723122401057,0.17,155.45,155.38,16.262]
[1723122401655,10.07965383,155.47,155.39,20.0]
[1723122401861,6.4332,155.45,155.39,20.0]
[1723122402360,6.4333,155.44,155.39,20.0]
[1723122402559,10.07909994,155.46,155.39,20.0]
[1723122402560,48.65909994,155.46,155.39,20.0]
[1723122402880,6.433,155.45,155.39,20.0]
[1723122403063,51.6033,155.44,155.38,16.262]
[1723122403385,0.17,155.43,155.38,16.262]
[1723122403985,2.8377619,155.52,155.39,1.2871407]
[1723122404192,6.4303,155.52,155.39,1.2871407]
[1723122404495,10.07761537,155.52,155.42,6.3063]
[1723122404783,6.4282,155.57,155.43,66.2862405]
[1723122404985,10.07524054,155.58,155.46,6.533]
[1723122405157,2.3734,155.65,155.47,66.28584115]
[1723122405359,58.86301239,155.62,155.48,15.987]
[1723122405555,10.07170051,155.62,155.5,6.61]
[1723122405758,35.73,155.65,155.5,6.61]
[1723122405759,6.4255,155.63,155.51,66.28557926]
[1723122406019,6.4255,155.63,155.51,65.0]
[1723122406020,16.49697907,155.63,155.51,65.0]
[1723122406162,38.58,155.61,155.51,20.0]
[1723122406363,38.58,155.61,155.5,6.61]
[1723122406364,74.31,155.59,155.5,6.61]
[1723122406875,38.58,155.55,155.5,6.61]
[1723122407075,6.4288,155.55,155.5,6.61]
[1723122407277,0.34,155.54,155.5,6.61]
[1723122407468,0.17,155.54,155.5,6.61]
[1723122408168,45.34,155.55,155.5,6.61]
[1723122408374,0.34,155.55,155.5,6.61]
[1723122409162,38.58,155.59,155.5,6.61]
[1723122409384,43.72,155.61,155.5,6.61]
[1723122409593,6.4292,155.54,155.5,6.61]
[1723122410284,38.58,155.6,155.5,6.61]
[1723122410467,6.4276,155.58,155.5,6.61]
[1723122410974,45.17,155.57,155.5,6.61]
[1723122411179,6.4288,155.55,155.5,6.61]
[1723122411373,51.7692,155.54,155.5,6.61]
[1723122411700,0.34,155.54,155.5,6.61]
[1723122411892,45.0,155.53,155.5,6.61]
[1723122412193,0.17,155.52,155.5,6.61]
[1723122412368,45.34,155.54,155.5,6.61]
[1723122412573,6.4272,155.59,155.5,6.61]
[1723122412773,45.17,155.58,155.5,6.61]
[1723122412969,6.4295,155.54,155.5,6.61]
[1723122413176,45.17,155.53,155.5,6.61]
[1723122413468,0.17,155.52,155.5,6.61]
[1723122413886,0.34,155.52,155.5,6.61]
[1723122416402,6.77,155.52,155.5,6.61]
[1723122416693,45.0,155.51,155.5,6.61]
[1723122416895,45.17,155.51,155.48,15.987]
[1723122417193,0.34,155.5,155.48,15.987]
[1723122417366,45.34,155.5,155.48,15.987]
[1723122417569,0.34,155.5,155.48,15.987]
[1723122417769,0.34,155.51,155.48,15.987]
[1723122418023,0.17,155.49,155.48,15.987]
[1723122418176,0.17,155.51,155.48,15.987]
[1723122418369,0.34,155.51,155.48,15.987]
[1723122418572,6.6008,155.51,155.48,15.987]
[1723122418791,6.4315,155.49,155.46,6.2271]
[1723122419000,51.6017,155.48,155.46,6.2271]
[1723122419179,6.6017,155.48,155.46,6.2271]
[1723122419392,51.4321,155.47,155.43,16.4627]
[1723122419691,0.17,155.46,155.43,16.4627]
[1723122419871,0.17,155.47,155.43,16.4627]
[1723122420071,45.0,155.5,155.43,16.4627]
[1723122420072,45.0,155.5,155.44,1.28663883]
[1723122420323,45.0,155.5,155.43,16.4627]
[1723122420324,45.17,155.51,155.43,16.4627]
[1723122420896,45.0,155.5,155.44,20.0]
[1723122421109,0.17,155.49,155.44,20.0]
[1723122421601,0.34,155.49,155.44,20.0]
[1723122421897,0.34,155.49,155.43,16.4627]
[1723122422108,38.92,155.49,155.43,16.4627]
[1723122422401,45.0,155.48,155.43,16.4627]
[1723122422597,0.34,155.47,155.43,16.4627]
[1723122422986,16.0715,155.56,155.43,16.4627]
[1723122423188,13.07999798,155.52,155.43,16.4627]
[1723122423500,38.58,155.55,155.44,1.28561458]
[1723122423717,43.72,155.57,155.44,20.0]
[1723122423718,6.4301,155.52,155.44,20.0]
[1723122424198,6.4297,155.53,155.44,20.0]
[1723122424416,38.58,155.58,155.45,1.28630616]
[1723122424614,16.49697907,155.63,155.48,15.0203]
[1723122424819,10.07147907,155.63,155.5,15.0203]
[1723122425014,6.4259,155.62,155.51,20.0]
[1723122425216,16.71930806,155.65,155.52,1.28570656]
[1723122425397,61.72430806,155.65,155.53,6.1603]
[1723122425599,51.65344411,155.65,155.54,20.0]
[1723122425809,6.64844411,155.65,155.55,17.45663276]
[1723122426022,16.0559,155.71,155.55,17.45663276]
[1723122426023,6.4233,155.69,155.56,6.2799]
[1723122426192,2.0918,155.81,155.57,66.28494114]
[1723122426392,38.58,155.73,155.59,16.1711]
[1723122426592,6.64677799,155.72,155.6,21.28492169]
[1723122426822,51.84343518,155.8,155.62,16.1711]
[1723122427032,10.06279052,155.77,155.63,66.28448874]
[1723122427390,6.64186933,155.79,155.63,65.0]
[1723122427628,38.58,155.76,155.63,65.0]
[1723122427792,38.58,155.74,155.63,20.0]
[1723122428208,6.4225,155.71,155.63,20.0]
[1723122428699,38.58,155.73,155.63,20.0]
[1723122428909,38.58,155.73,155.63,21.28485833]
[1723122429116,45.17,155.72,155.63,21.28485833]
[1723122429300,0.17,155.71,155.63,20.0]
[1723122430021,38.58,155.68,155.62,16.1711]
[1723122430220,16.2258,155.71,155.62,16.1711]
[1723122430221,6.425,155.65,155.62,16.1711]
[1723122430425,51.7654,155.64,155.62,16.1711]
[1723122430600,45.34,155.64,155.62,16.1711]
[1723122431014,0.34,155.64,155.62,16.1711]
[1723122431807,0.17,155.64,155.62,16.1711]
[1723122432247,6.4254,155.63,155.54,22.8098]
[1723122432416,45.0064,155.61,155.54,22.8098]
[1723122432742,0.17,155.62,155.54,22.8098]
[1723122433108,0.17,155.64,155.54,22.8098]
[1723122433622,0.17,155.64,155.55,20.0]
[1723122434334,45.34,155.65,155.55,20.0]
[1723122434512,51.7647,155.65,155.55,20.0]
[1723122434713,6.4252,155.64,155.55,20.0]
[1723122434915,45.34,155.63,155.55,20.0]
[1723122435317,45.34,155.63,155.54,22.8098]
[1723122435318,38.58,155.62,155.54,22.8098]
[1723122435532,45.34,155.61,155.54,22.8098]
[1723122435728,0.17,155.61,155.54,22.8098]
[1723122435911,0.17,155.62,155.54,22.8098]
[1723122436236,6.5959,155.62,155.54,22.8098]
[1723122436417,45.17,155.61,155.54,22.8098]
[1723122436739,0.17,155.6,155.54,22.8098]
[1723122436950,38.58,155.59,155.54,22.8098]
[1723122437243,6.4288,155.55,155.54,22.8098]
[1723122437542,45.34,155.55,155.54,22.8098]
[1723122438071,6.43,155.52,155.41,22.6864]
[1723122438336,0.34,155.51,155.41,22.6864]
[1723122438507,30.17,155.55,155.42,1.28631293]
[1723122438707,0.34,155.54,155.43,1.28610794]
[1723122439137,30.0,155.51,155.43,1.28610794]
[1723122439345,13.3334,155.51,155.43,1.28610794]
[1723122439648,0.34,155.54,155.42,1.4561072]
[1723122439859,0.34,155.54,155.42,45.17]
[1723122440065,45.34,155.55,155.43,20.0]
[1723122440352,30.0,155.5,155.41,22.6864]
[1723122440727,45.17,155.49,155.41,22.6864]
[1723122440932,0.17,155.48,155.41,22.6864]
[1723122441128,0.17,155.49,155.41,22.6864]
[1723122441724,30.0,155.5,155.41,22.6864]
[1723122442055,0.17,155.49,155.41,22.6864]
[1723122442352,0.17,155.51,155.41,22.6864]
[1723122442353,30.0,155.48,155.42,20.0]
[1723122442566,45.21181694,155.58,155.42,20.0]
[1723122442727,6.63181694,155.58,155.43,45.0]
[1723122442926,42.37181694,155.58,155.42,20.0]
[1723122443137,6.4301,155.52,155.42,20.0]
[1723122443349,35.74,155.55,155.42,20.0]
[1723122443559,6.4303,155.52,155.42,20.0]
[1723122444055,51.7707,155.51,155.41,22.6864]
[1723122444233,83.92,155.51,155.41,22.6864]
[1723122444433,6.4309,155.5,155.41,22.6864]
[1723122444645,83.92,155.49,155.41,22.6864]
[1723122444848,6.4328,155.46,155.41,22.6864]
[1723122445050,6.773,155.45,155.41,22.6864]
[1723122445249,45.0,155.44,155.41,22.6864]
[1723122445424,0.34,155.43,155.41,6.3093]
[1723122445831,30.0,155.47,155.41,6.3093]
[1723122446048,45.34,155.46,155.41,6.3093]
[1723122446732,83.92,155.46,155.41,6.3093]
[1723122447156,6.4332,155.45,155.41,6.3093]
[1723122447460,83.92,155.44,155.41,6.3093]
[1723122447633,6.4339,155.43,155.41,6.3093]
[1723122447837,45.34,155.42,155.36,6.2508]
[1723122448040,0.17,155.42,155.36,7.53800919]
[1723122448351,0.17,155.44,155.36,7.53800919]
[1723122448944,0.17,155.44,155.36,6.2508]
[1723122449255,30.0,155.47,155.37,21.28626239]
[1723122450040,30.0,155.47,155.37,20.0]
[1723122450387,30.0,155.47,155.38,1.28629809]
[1723122450742,30.0,155.47,155.38,46.28629809]
[1723122451057,16.071,155.56,155.4,6.6309]
[1723122451239,45.21622659,155.54,155.41,20.0]